bitfinex-derivatives/quotes_SOLF0:USTF0_20241011
["timestamp","ask_amount","ask_price","bid_price","bid_amount"]
[1728610734279,12.4527,138.9,138.89,2.28508]
[1728610738088,3.6027,138.9,138.89,2.28508]
[1728610739088,3.6023,138.92,138.89,2.28508]
[1728610739284,13.93,138.93,138.89,2.28508]
[1728610739483,17.5321,138.93,138.9,3.6027]
[1728610739891,13.93,138.93,138.89,11.13508]
[1728610741390,3.6022,138.92,138.89,14.73798]
[1728610742789,1.3886,138.98,138.9,3.6026]
[1728610742995,8.85,138.95,138.9,3.6026]
[1728610743292,3.602,138.93,138.9,3.6026]
[1728610743491,3.602,138.93,138.9,5.76266]
[1728610745298,8.85,138.95,138.9,11.01006]
[1728610746094,3.6018,138.94,138.91,3.6023]
[1728610746694,3.6018,138.94,138.91,5.76236]
[1728610747082,8.85,138.95,138.91,2.16006]
[1728610747286,8.85,138.95,138.92,3.602]
[1728610747892,8.85,138.95,138.92,5.76206]
[1728610748096,12.4516,138.95,138.92,5.76206]
[1728610749695,3.6016,138.95,138.92,5.76206]
[1728610749898,3.6014,138.96,138.92,5.76196]
[1728610750196,12.4514,138.96,138.92,5.76196]
[1728610750395,8.85,138.96,138.92,5.76196]
[1728610751486,3.6015,138.95,138.92,2.16006]
[1728610751703,8.85,138.96,138.92,2.16006]
[1728610752285,5.08,138.97,138.92,2.16006]
[1728610752286,3.6019,138.94,138.92,2.16006]
[1728610752495,8.85,138.93,138.92,2.16006]
[1728610752796,8.85,138.93,138.89,0.12502]
[1728610752797,8.85,138.93,138.89,2.28508]
[1728610753101,12.4526,138.91,138.89,2.28508]
[1728610754087,3.6026,138.91,138.89,2.28508]
[1728610763005,12.4526,138.91,138.89,2.28508]
[1728610764505,3.6027,138.9,138.89,2.28508]
[1728610767309,8.85,138.91,138.89,2.28508]
[1728610767506,12.4526,138.91,138.89,2.28508]
[1728610771520,3.6026,138.91,138.89,2.28508]
[1728610775606,13.91,138.94,138.9,3.6026]
[1728610775807,5.06,138.95,138.89,11.13508]
[1728610776106,3.6013,138.96,138.93,3.6018]
[1728610776714,3.601,138.97,138.94,3.6015]
[1728610777415,3.601,138.97,138.94,5.76156]
[1728610777820,3.6007,138.98,138.95,3.6013]
[1728610778016,8.97502,139.01,138.95,8.85]
[1728610778214,14.03502,139.01,138.95,8.85]
[1728610778409,17.63502,139.01,138.97,3.6007]
[1728610778617,3.72502,139.01,138.97,12.4507]
[1728610779019,3.6002,139.0,138.97,12.4507]
[1728610780222,0.12502,139.01,138.97,14.61076]
[1728610780523,0.12502,139.01,138.97,11.01006]
[1728610781021,0.12502,139.01,138.98,3.6006]
[1728610781321,0.12502,139.01,138.98,5.76066]
[1728610781617,3.72492,139.01,138.98,5.76066]
[1728610781817,0.12502,139.01,138.98,5.76066]
[1728610782014,0.12502,139.01,138.98,14.61066]
[1728610783222,3.72492,139.01,138.98,5.76066]
[1728610783921,12.57492,139.01,138.98,2.16006]
[1728610785723,3.72492,139.01,138.98,2.16006]
[1728610785918,12.57492,139.01,138.98,2.16006]
[1728610787319,8.97502,139.01,138.98,2.16006]
[1728610787524,12.4502,139.0,138.98,2.16006]
[1728610787718,8.85,139.0,138.98,2.16006]
[1728610788725,3.6004,138.99,138.98,2.16006]
[1728610790826,3.6003,139.0,138.98,2.16006]
[1728610791026,8.97502,139.01,138.98,2.16006]
[1728610791522,3.6003,139.0,138.98,2.16006]
[1728610797527,3.6004,138.99,138.98,2.16006]
[1728610806935,3.6003,139.0,138.98,2.16006]
[1728610811749,0.12502,139.01,138.98,11.01006]
[1728610811939,3.72502,139.01,138.98,14.61056]
[1728610813036,0.12502,139.01,138.99,3.6004]
[1728610814145,0.12502,139.01,139.0,8.85]
[1728610814345,3.67717257,139.09,139.0,8.85]
[1728610814536,0.12502,139.07,139.03,8.85]
[1728610815740,0.12502,139.07,139.04,8.85]
[1728610816545,0.12502,139.07,139.04,14.60906]
[1728610818540,3.72332,139.07,139.04,14.60906]
[1728610818735,3.72332,139.07,139.05,8.85]
[1728610819146,3.72332,139.07,139.04,10.81906]
[1728610819147,341.0,139.21,139.06,12.4486]
[1728610819447,3.67886899,139.14,139.08,8.85]
[1728610819646,8.97502,139.13,139.08,8.85]
[1728610819852,8.97502,139.13,139.08,11.01006]
[1728610820444,3.5971,139.12,139.08,14.60786]
[1728610820743,3.5971,139.12,139.08,11.01006]
[1728610821138,12.57182,139.13,139.1,8.85]
[1728610821341,3.72182,139.13,139.1,8.85]
[1728610821949,3.72182,139.13,139.1,11.01006]
[1728610822150,8.97502,139.13,139.1,2.16006]
[1728610823055,8.85,139.11,139.08,2.16006]
[1728610823250,8.85,139.1,139.02,1.4329]
[1728610823456,8.85,139.07,139.03,13.91]
[1728610823948,12.4484,139.07,139.03,17.5092]
[1728610824147,12.4484,139.07,139.03,19.66926]
[1728610826651,3.5984,139.07,139.04,12.4491]
[1728610826850,3.5984,139.07,139.04,2.16006]
[1728610830563,8.85,139.07,139.04,2.16006]
[1728610831458,3.5988,139.06,139.04,2.16006]
[1728610831660,8.85,139.09,139.04,11.01006]
[1728610832047,3.5984,139.07,139.04,14.60886]
[1728610832252,3.5984,139.07,139.04,11.01006]
[1728610832753,3.5982,139.08,139.05,3.5988]
[1728610833261,8.85,139.09,139.05,5.75886]
[1728610833561,8.85,139.09,139.05,2.16006]
[1728610834553,3.5983,139.07,139.05,2.16006]
[1728610836760,5.06,139.12,139.05,2.16006]
[1728610836761,3.5986,139.06,139.05,2.16006]
[1728610837455,5.06,139.12,139.05,11.01006]
[1728610837664,8.85,139.11,139.05,11.01006]
[1728610838162,3.598,139.09,139.06,3.5984]
[1728610838853,3.5977,139.1,139.07,12.4482]
[1728610839248,3.5977,139.1,139.07,8.85]
[1728610839960,3.5977,139.1,139.08,3.598]
[1728610840154,3.5977,139.1,139.08,5.75806]
[1728610840556,3.5977,139.1,139.08,14.60806]
[1728610840854,5.18502,139.13,139.08,14.60806]
[1728610840855,0.12502,139.13,139.09,8.85]
[1728610841058,0.12502,139.13,139.12,8.85]
[1728610843871,0.12502,139.13,139.11,14.60726]
[1728610844261,0.12502,139.13,139.11,11.01006]
[1728610844567,8.97502,139.13,139.11,2.16006]
[1728610844764,8.85,139.12,139.07,11.6104]
[1728610844971,3.598,139.09,139.07,4.92046]
[1728610846662,3.5977,139.1,139.07,17.36876]
[1728610852371,8.85,139.12,139.07,8.51876]
[1728610852671,3.5978,139.1,139.07,17.36876]
[1728610854674,3.5978,139.09,139.07,17.36876]
[1728610855882,3.5978,139.09,139.07,13.77046]
[1728610857274,3.5978,139.09,139.07,17.36876]
[1728610860581,3.5978,139.09,139.07,13.77046]
[1728610861672,3.5978,139.09,139.07,17.36876]
[1728610865678,3.5975,139.11,139.08,12.4479]
[1728610865978,3.5975,139.11,139.1,8.85]
[1728610866575,3.5975,139.11,139.1,11.01006]
[1728610866782,3.5975,139.11,139.1,2.16006]
[1728610871279,12.4475,139.11,139.1,2.16006]
[1728610871482,3.5981,139.08,139.07,2.16006]
[1728610872481,8.85,139.11,139.07,2.16006]
[1728610872693,3.5979,139.09,139.07,2.16006]
[1728610876193,12.4481,139.08,139.07,2.16006]
[1728610876380,13.91,139.08,139.03,2.16006]
[1728610876585,8.85,139.04,139.01,0.12502]
[1728610876780,12.4496,139.02,139.01,0.12502]
[1728610877992,8.85,139.05,139.01,0.12502]
[1728610878289,13.91,139.05,139.01,2.28313]
[1728610878480,8.85,139.03,139.01,0.12502]
[1728610878992,3.5996,139.02,139.01,0.12502]
[1728610880198,3.5996,139.02,139.01,2.28313]
[1728610881391,3.5993,139.04,139.01,2.28313]
[1728610881591,13.91,139.05,139.01,2.28313]
[1728610881899,13.91,139.06,139.01,2.28313]
[1728610882200,8.85,139.06,139.01,5.88283]
[1728610883294,3.5992,139.04,139.01,2.28313]
[1728610884693,3.5996,139.02,139.01,2.28313]
[1728610891200,12.4496,139.02,139.01,2.28313]
[1728610897310,3.5996,139.02,139.01,2.28313]
[1728610901310,5.06,139.04,139.01,2.28313]
[1728610901512,3.5992,139.04,139.01,11.13313]
[1728610902306,3.5992,139.04,139.01,14.73283]
[1728610902513,5.06,139.07,139.02,8.85]
[1728610902715,13.91,139.07,139.02,8.85]
[1728610903013,3.599,139.05,139.02,12.4495]
[1728610903308,8.85,139.07,139.02,11.00811]
[1728610903508,3.5987,139.06,139.03,3.5993]
[1728610903811,3.5987,139.06,139.03,5.75741]
[1728610905309,4.97772331,139.1,139.04,8.85]
[1728610905510,3.5983,139.08,139.05,8.85]
[1728610906205,3.5983,139.08,139.05,11.00811]
[1728610906401,3.5979,139.09,139.06,8.85]
[1728610906603,3.5979,139.09,139.06,11.00811]
[1728610907311,3.5979,139.09,139.06,14.60651]
[1728610908618,8.85,139.1,139.06,2.15811]
[1728610908817,3.5983,139.07,139.06,2.15811]
[1728610909016,12.4483,139.07,139.06,2.15811]
[1728610909313,8.85,139.07,139.04,2.15811]
[1728610909513,8.85,139.05,139.04,2.15811]
[1728610910109,12.4488,139.05,139.04,2.15811]
[1728610911411,3.5988,139.05,139.04,2.15811]
[1728610918528,12.4488,139.05,139.04,2.15811]
[1728610918825,8.85,139.05,139.01,2.28313]
[1728610919024,8.85,139.03,139.01,2.28313]
[1728610919226,12.4495,139.03,139.01,2.28313]
[1728610920120,3.5995,139.03,139.01,2.28313]
[1728610926637,3.5992,139.04,139.01,5.88293]
[1728610931640,3.5992,139.04,139.02,3.5996]
[1728610931841,3.5992,139.04,139.02,5.75771]
[1728610934333,8.85,139.05,139.02,2.15811]
[1728610934540,6.4343,139.08,139.02,2.15811]
[1728610934541,3.5987,139.06,139.03,3.5992]
[1728610935244,3.5987,139.06,139.03,5.75731]
[1728610938637,3.5989,139.05,139.03,5.75731]
[1728610944851,3.5989,139.05,139.03,2.15811]
[1728610945355,8.85,139.07,139.03,2.15811]
[1728610945545,3.5991,139.04,139.03,2.15811]
[1728610947154,3.599,139.05,139.03,2.15811]
[1728610947946,3.599,139.05,139.03,5.75741]
[1728610950053,1.3906,139.12,139.04,8.85]
[1728610950251,0.12502,139.13,139.06,8.85]
[1728610950458,0.12502,139.13,139.09,8.85]
[1728610950750,0.12502,139.13,139.1,3.5975]
[1728610951352,3.72202,139.13,139.09,11.00811]
[1728610951562,3.72202,139.13,139.09,14.60581]
[1728610951858,0.12502,139.13,139.09,14.60581]
[1728610952059,0.12502,139.13,139.1,3.5975]
[1728610952754,0.12502,139.13,139.1,5.75561]
[1728610953458,3.72192,139.13,139.1,5.75561]
[1728610956756,0.12502,139.13,139.1,2.15811]
[1728610957358,3.72192,139.13,139.1,5.75561]
[1728610959158,3.597,139.12,139.1,5.75561]
[1728610959661,3.597,139.12,139.1,2.15811]
[1728610973668,3.597,139.12,139.1,5.75561]
[1728610973975,3.597,139.12,139.1,14.60561]
[1728610974976,3.72192,139.13,139.1,14.60561]
[1728610975476,0.12502,139.13,139.1,14.60561]
[1728610975669,3.5971,139.12,139.1,14.60561]
[1728610977572,0.12502,139.13,139.1,2.15811]
[1728610977876,8.85,139.12,139.09,7.21811]
[1728610978072,8.85,139.12,139.09,2.15811]
[1728610978266,3.5977,139.1,139.09,2.15811]
[1728610986383,8.97502,139.13,139.09,2.15811]
[1728610986581,3.5975,139.11,139.09,2.15811]
[1728610989083,3.5975,139.1,139.09,2.15811]
[1728610989386,3.5975,139.1,139.04,1.3783]
[1728610989387,3.63760471,139.12,139.07,2.15811]
[1728610989687,8.85,139.1,139.07,2.15811]
[1728610990384,3.5981,139.08,139.07,2.15811]
[1728611002095,12.4481,139.08,139.07,2.15811]
[1728611002295,3.63760471,139.12,139.05,7.21811]
[1728611002892,3.5979,139.09,139.05,16.06811]
[1728611003087,8.85,139.1,139.05,16.06811]
[1728611003484,1.54482,139.13,139.08,8.85]
[1728611003689,1.54482,139.13,139.09,8.85]
[1728611003690,0.12502,139.13,139.09,8.85]
[1728611003893,0.12502,139.13,139.09,12.4477]
[1728611003894,3.5972,139.12,139.09,12.4477]
[1728611004295,8.97502,139.13,139.09,11.00811]
[1728611004596,8.97502,139.13,139.09,2.15811]
[1728611004787,3.5973,139.11,139.08,17.5079]
[1728611005401,3.5978,139.09,139.06,3.5985]
[1728611005703,8.85,139.09,139.06,5.06]
[1728611006091,3.5982,139.08,139.06,5.06]
[1728611007895,3.5985,139.07,139.06,5.06]
[1728611013507,3.5982,139.08,139.06,5.06]
[1728611023917,8.85,139.1,139.06,5.06]
[1728611024215,0.12502,139.13,139.09,8.85]
[1728611024623,3.5972,139.12,139.09,17.5078]
[1728611024819,0.12502,139.13,139.09,17.5078]
[1728611025021,3.5974,139.11,139.09,13.91]
[1728611025221,3.5974,139.11,139.09,5.06]
[1728611031130,3.72182,139.13,139.1,12.4473]
[1728611031430,3.72182,139.13,139.1,8.85]
[1728611032526,3.72182,139.13,139.11,3.5973]
[1728611033729,3.72182,139.13,139.1,12.4474]
[1728611034028,3.72182,139.13,139.1,3.5974]
[1728611034424,3.5973,139.11,139.09,5.06]
[1728611034627,8.85,139.1,139.07,7.8163]
[1728611034933,8.85,139.09,139.06,5.04]
[1728611035131,3.5982,139.08,139.06,5.04]
[1728611036033,3.5982,139.08,139.06,8.6385]
[1728611038032,3.5979,139.09,139.06,8.6385]
[1728611041936,3.5979,139.09,139.07,3.5982]
[1728611043539,3.5979,139.09,139.06,5.04]
[1728611043735,3.5979,139.09,139.06,8.6385]
[1728611046444,3.5981,139.08,139.06,5.04]
[1728611048243,3.5981,139.08,139.06,8.6386]
[1728611054651,3.598,139.09,139.06,8.6386]
[1728611058356,8.85,139.1,139.06,8.6386]
[1728611058656,3.5981,139.08,139.06,8.6386]
[1728611058854,8.85,139.08,139.05,3.5986]
[1728611060548,3.5985,139.07,139.05,3.5986]
[1728611060851,3.5985,139.07,139.04,5.04]
[1728611061055,3.5985,139.07,139.04,8.639]
[1728611063447,8.85,139.07,139.03,1.3629]
[1728611063649,3.599,139.05,139.03,5.04]
[1728611065147,3.599,139.05,139.02,100.54028734]
[1728611065344,8.85,139.06,139.02,91.90078734]
[1728611065546,8.85,139.04,139.02,91.90078734]
[1728611066455,3.5994,139.03,139.02,91.90078734]
[1728611070163,3.5994,139.03,139.01,8.76482]
[1728611070866,3.5994,139.03,139.01,3.72482]
[1728611071367,8.85,139.06,139.01,8.97502]
[1728611071565,3.599,139.05,139.02,3.5995]
[1728611072565,12.4488,139.06,139.02,3.5995]
[1728611073272,3.5988,139.05,139.02,3.5995]
[1728611073972,3.5988,139.05,139.03,3.5993]
[1728611082893,3.5991,139.04,139.02,3.5995]
[1728611083887,3.5989,139.05,139.02,3.5995]
[1728611085390,3.5986,139.07,139.02,8.85]
[1728611085594,3.5986,139.07,139.03,8.85]
[1728611085893,3.5986,139.07,139.03,13.89]
[1728611086190,3.5986,139.07,139.04,3.5989]
[1728611086789,3.5986,139.07,139.03,13.89]
[1728611086989,3.5986,139.07,139.04,3.599]
[1728611087195,3.5986,139.07,139.03,13.89]
[1728611087693,3.5986,139.07,139.04,3.5989]
[1728611098601,3.5984,139.07,139.04,3.5989]
[1728611100402,3.5984,139.07,139.03,5.04]
[1728611100700,3.5984,139.07,139.04,3.599]
[1728611107005,5.04,139.11,139.03,13.89]
[1728611107309,0.12502,139.13,139.09,8.85]
[1728611107506,0.12502,139.13,139.1,8.85]
[1728611107812,3.72192,139.13,139.11,3.5973]
[1728611108709,0.12502,139.13,139.1,8.85]
[1728611108906,73.07489116,139.18,139.12,8.85]
[1728611109109,56.97561643,139.18,139.14,8.85]
[1728611109407,65.82561643,139.18,139.13,13.89]
[1728611109802,3.596,139.16,139.13,17.4866]
[1728611110304,65.82561643,139.18,139.14,3.5963]
[1728611110507,3.5958,139.17,139.14,3.5963]
[1728611111904,65.82561643,139.18,139.14,3.5963]
[1728611112105,3.72042,139.19,139.16,8.85]
[1728611112503,0.12502,139.19,139.15,12.4461]
[1728611112720,8.97502,139.19,139.15,12.4461]
[1728611113402,3.5955,139.18,139.15,12.4461]
[1728611113598,8.97502,139.19,139.14,8.85]
[1728611114408,3.5958,139.17,139.14,12.4465]
[1728611117308,3.5958,139.17,139.14,17.4865]
[1728611117902,3.5958,139.17,139.09,93.22500241]
[1728611117903,3.597,139.12,139.09,101.86270241]
[1728611118110,8.85,139.13,139.09,6.4154]
[1728611118312,8.3169,139.18,139.09,15.2654]
[1728611118512,8.85,139.15,139.1,8.85]
[1728611119310,12.4464,139.15,139.12,3.597]
[1728611119509,8.85,139.15,139.12,3.597]
[1728611120406,3.5965,139.14,139.1,8.85]
[1728611120610,3.5965,139.14,139.11,3.5972]
[1728611124524,3.5969,139.13,139.1,3.5975]
[1728611126025,3.5969,139.13,139.1,12.4475]
[1728611128325,8.3169,139.18,139.1,8.85]
[1728611128618,8.97502,139.19,139.14,8.85]
[1728611129018,3.596,139.16,139.14,8.85]
[1728611134831,8.97502,139.19,139.14,8.85]
[1728611135020,3.5959,139.17,139.14,12.4464]
[1728611136514,3.5959,139.17,139.15,3.5962]
[1728611138219,3.5956,139.18,139.15,3.5962]
[1728611138626,8.97502,139.19,139.15,8.6362]
[1728611139128,3.5955,139.18,139.15,8.6362]
[1728611142327,3.5957,139.17,139.15,8.6362]
[1728611143827,0.12502,139.19,139.17,3.5956]
[1728611144128,0.12502,139.19,139.17,8.85]
[1728611144429,0.12502,139.19,139.17,12.4456]
[1728611144928,0.12502,139.19,139.18,17.4855]
[1728611145225,8.85,139.24,139.19,8.85]
[1728611145431,3.5946,139.22,139.18,12.4453]
[1728611145728,3.5946,139.22,139.19,5.04]
[1728611146231,8.85,139.2,139.14,2.679]
[1728611146433,8.85,139.17,139.14,5.04]
[1728611147124,3.5962,139.16,139.14,5.04]
[1728611147724,3.5962,139.16,139.13,5.15702]
[1728611147929,8.85,139.15,139.13,0.12502]
[1728611148628,12.4465,139.14,139.13,0.12502]
[1728611156037,3.5965,139.14,139.13,0.12502]
[1728611161644,4.85077363,139.2,139.13,0.12502]
[1728611161952,3.5964,139.15,139.13,0.12502]
[1728611162548,3.5961,139.16,139.13,12.57182]
[1728611166443,8.85,139.17,139.13,0.12502]
[1728611166749,3.5965,139.14,139.13,0.12502]
[1728611170054,12.4465,139.14,139.13,0.12502]
[1728611171357,3.5965,139.14,139.13,0.12502]
[1728611172452,5.04,139.18,139.13,8.97502]
[1728611172658,13.89,139.18,139.13,8.97502]
[1728611173159,5.04,139.18,139.14,8.85]
[1728611173458,3.5959,139.17,139.14,12.4464]
[1728611173861,3.5959,139.17,139.14,8.85]
[1728611174067,3.5959,139.17,139.15,8.85]
[1728611174261,3.5956,139.18,139.15,12.4461]
[1728611174454,8.85,139.2,139.15,12.4461]
[1728611174658,12.47439252,139.2,139.15,8.85]
[1728611174969,1.4325,139.21,139.14,12.4464]
[1728611174970,3.5959,139.17,139.14,12.4464]
[1728611175153,8.85,139.2,139.15,8.85]
[1728611175359,5.04,139.22,139.17,8.85]
[1728611175654,13.89,139.22,139.17,8.85]
[1728611175857,13.89,139.22,139.17,12.4456]
[1728611175858,3.595,139.2,139.17,12.4456]
[1728611176259,1.51372,139.25,139.17,8.85]
[1728611176457,8.85,139.23,139.18,8.85]
[1728611177159,3.5947,139.22,139.19,3.5952]
[1728611177557,8.85,139.23,139.18,8.85]
[1728611177767,8.85,139.21,139.17,8.85]
[1728611177965,8.85,139.21,139.16,13.89]
[1728611178268,5.04,139.24,139.16,13.89]
[1728611178572,5.04,139.24,139.17,8.85]
[1728611178573,8.85,139.22,139.17,8.85]
[1728611179168,3.5949,139.21,139.18,3.5953]
[1728611179569,3.595,139.2,139.17,12.4456]
[1728611181469,6.55372,139.25,139.19,8.85]
[1728611181668,3.5945,139.22,139.19,12.4451]
[1728611181972,8.85,139.24,139.19,13.89]
[1728611182169,3.5942,139.23,139.2,3.5948]
[1728611182966,3.5942,139.23,139.2,12.4448]
[1728611184172,3.5945,139.22,139.19,17.4851]
[1728611185673,0.12502,139.25,139.19,13.89]
[1728611185872,3.5939,139.24,139.22,8.85]
[1728611186066,0.12502,139.25,139.22,8.85]
[1728611186267,3.5942,139.24,139.22,8.85]
[1728611187777,3.71892,139.25,139.22,12.4443]
[1728611188177,0.12502,139.25,139.21,8.85]
[1728611188478,3.5941,139.24,139.21,12.4446]
[1728611189569,3.71892,139.25,139.22,8.85]
[1728611189770,3.71892,139.25,139.23,8.85]
[1728611189977,0.12502,139.25,139.24,8.85]
[1728611190179,3.71848,139.27,139.24,8.85]
[1728611190477,0.12518,139.27,139.25,8.85]
[1728611190679,0.12518,139.27,139.25,13.89]
[1728611191076,0.12518,139.27,139.25,17.4835]
[1728611191381,0.12518,139.27,139.26,8.85]
[1728611192272,0.12518,139.27,139.25,13.89]
[1728611193287,0.12518,139.27,139.25,5.04]
[1728611193779,0.12518,139.27,139.25,13.89]
[1728611194082,8.97518,139.27,139.23,8.85]
[1728611194269,8.97518,139.27,139.23,5.04]
[1728611194576,3.5935,139.26,139.23,13.89]
[1728611194972,0.12518,139.27,139.25,3.5937]
[1728611195174,0.12518,139.27,139.24,8.85]
[1728611195781,3.71838,139.27,139.24,12.4438]
[1728611196281,0.12518,139.27,139.24,12.4438]
[1728611196876,3.5935,139.26,139.24,8.85]
[1728611198481,3.71838,139.27,139.25,8.85]
[1728611199378,3.71838,139.27,139.25,12.4436]
[1728611199586,0.12518,139.27,139.26,13.89]
[1728611199889,0.12502,139.31,139.27,3.593]
[1728611200076,0.12502,139.31,139.3,8.85]
[1728611200480,5.16502,139.37,139.3,12.4424]
[1728611200787,10.16961781,139.36,139.3,12.4424]
[1728611200983,8.85,139.36,139.3,12.4424]
[1728611201181,8.85,139.36,139.3,8.85]
[1728611201382,8.85,139.36,139.31,8.85]
[1728611203786,8.85,139.35,139.3,8.85]
[1728611203983,8.85,139.34,139.29,13.89]
[1728611204293,8.85,139.33,139.29,5.04]
[1728611204583,3.5924,139.3,139.29,5.04]
[1728611206688,18.85,139.35,139.29,5.04]
[1728611206988,3.5922,139.31,139.29,5.04]
[1728611207388,18.85,139.35,139.29,5.04]
[1728611207588,1.31970475,139.34,139.29,5.04]
[1728611207887,1.31975142,139.33,139.29,5.04]
[1728611208088,1.31975142,139.34,139.3,13.81]
[1728611208293,1.31975154,139.33,139.3,13.81]
[1728611208486,5.16502,139.37,139.3,13.81]
[1728611208679,3.5916,139.34,139.3,17.4022]
[1728611208882,1.31993418,139.33,139.3,13.81]
[1728611209089,3.5923,139.31,139.29,5.04]
[1728611209390,13.81,139.35,139.29,5.04]
[1728611209597,3.592,139.32,139.29,8.6326]
[1728611209781,13.81,139.35,139.29,5.04]
[1728611209981,1.32006087,139.34,139.29,5.04]
[1728611210393,3.5921,139.32,139.28,3.5928]
[1728611210588,3.5921,139.32,139.29,5.04]
[1728611210986,13.81,139.35,139.29,5.04]
[1728611211191,3.5922,139.31,139.29,5.04]
[1728611211877,13.81,139.35,139.29,5.04]
[1728611212690,13.81,139.35,139.27,1.3011]
[1728611212886,1.32015792,139.34,139.27,6.3411]
[1728611213084,6.36015792,139.34,139.27,6.3411]
[1728611213290,5.04,139.34,139.27,6.3411]
[1728611213489,3.5925,139.3,139.27,9.9342]
[1728611216791,3.5927,139.29,139.27,9.9342]
[1728611217394,3.5927,139.29,139.27,4.8942]
[1728611217590,3.5927,139.29,139.27,9.9342]
[1728611218099,5.04,139.34,139.27,9.9342]
[1728611218292,3.5925,139.3,139.27,9.9342]
[1728611219799,5.04,139.34,139.27,6.3411]
[1728611220000,3.592,139.32,139.29,3.5925]
[1728611221686,13.93502,139.37,139.28,13.81]
[1728611221887,3.5918,139.33,139.3,3.5922]
[1728611222100,3.5918,139.33,139.3,22.4422]
[1728611222293,5.16502,139.37,139.3,18.85]
[1728611222495,3.5915,139.34,139.31,3.592]
[1728611223087,3.5915,139.34,139.32,3.5918]
[1728611223993,0.12502,139.37,139.32,17.4018]
[1728611224196,0.12502,139.37,139.33,8.6316]
[1728611224400,0.12502,139.37,139.33,5.04]
[1728611224593,0.12502,139.37,139.33,18.85]
[1728611225192,3.71572,139.37,139.34,3.5912]
[1728611228398,3.71572,139.37,139.35,8.83]
[1728611228800,0.12502,139.37,139.35,8.83]
[1728611229105,0.12502,139.37,139.34,8.83]
[1728611229106,3.5908,139.36,139.34,8.83]
[1728611229899,0.12502,139.37,139.34,8.83]
[1728611230102,0.12502,139.37,139.35,8.83]
[1728611230707,3.71582,139.37,139.35,8.83]
[1728611231402,3.5908,139.36,139.35,8.83]
[1728611232205,3.71572,139.37,139.35,8.83]
[1728611233105,0.12502,139.37,139.35,8.83]
[1728611233298,3.5908,139.36,139.35,8.83]
[1728611236906,0.12502,139.37,139.32,4.1763]
[1728611237109,1.31973934,139.36,139.33,8.83]
[1728611237407,4.91083934,139.36,139.34,8.83]
[1728611237613,1.31973934,139.35,139.34,8.83]
[1728611238006,3.5911,139.35,139.34,8.83]
[1728611238399,4.91090513,139.35,139.34,8.83]
[1728611239513,3.5911,139.35,139.34,8.83]
[1728611239714,4.91091218,139.35,139.34,8.83]
[1728611240509,3.5911,139.35,139.34,8.83]
[1728611244415,0.12502,139.37,139.34,8.83]
[1728611244710,0.12502,139.37,139.36,8.83]
[1728611245517,3.71572,139.37,139.36,8.83]
[1728611247323,3.71572,139.37,139.35,5.02]
[1728611247518,3.71572,139.37,139.36,8.83]
[1728611247720,0.12502,139.37,139.35,5.02]